lending/lending_fUSD_20250122
["ID","MTS","AMOUNT","RATE_DAILY","PERIOD"]
[350041028,1737588647994,-500.0,0.000217,2]
[350041029,1737588648003,-500.0,0.000217,2]
[350041030,1737588648012,-500.0,0.000217,2]
[350041031,1737588648027,-500.0,0.000217,2]
[350041032,1737588648037,-2196.97,0.000217,2]
[350041033,1737588648046,-500.0,0.000217,2]
[350041034,1737588648056,-500.0,0.000217,2]
[350041035,1737588648065,-500.0,0.000217,2]
[350041036,1737588648074,-500.0,0.000217,2]
[350041037,1737588648083,-500.0,0.000217,2]
[350041038,1737588648092,-500.0,0.000217,2]
[350041039,1737588648101,-300.0,0.000217,2]
[350041040,1737588648110,-500.0,0.000217,2]
[350041041,1737588648119,-957.27,0.000217,2]
[350041042,1737588648129,-500.0,0.000217,2]
[350041043,1737588648143,-500.0,0.000217,2]
[350041044,1737588648153,-500.0,0.000217,2]
[350041045,1737588648163,-500.0,0.000217,2]
[350041046,1737588648172,-500.0,0.000217,2]
[350041047,1737588648182,-1274.36,0.000217,2]
[350041048,1737588648191,-500.0,0.000217,2]
[350041049,1737588648201,-246.48262511,0.000217,2]
[350041050,1737588648210,-500.0,0.000217,2]
[350041051,1737588648219,-500.0,0.000217,2]
[350041052,1737588648229,-500.0,0.000217,2]
[350041053,1737588648238,-1475.58,0.000217,2]
[350041054,1737588648248,-500.0,0.000217,2]
[350041055,1737588648257,-500.0,0.000217,2]
[350041056,1737588648266,-500.0,0.000217,2]
[350041057,1737588648276,-500.0,0.000217,2]
[350041058,1737588648285,-500.0,0.000217,2]
[350041059,1737588648294,-500.0,0.000217,2]
[350041060,1737588648303,-500.0,0.000217,2]
[350041061,1737588648313,-500.0,0.000217,2]
[350041062,1737588648322,-500.0,0.000217,2]
[350041063,1737588648332,-500.0,0.000217,2]
[350041064,1737588648341,-500.0,0.000217,2]
[350041065,1737588648350,-500.0,0.000217,2]
[350041066,1737588648359,-1000.0,0.000217,2]
[350041067,1737588648368,-500.0,0.000217,2]
[350041068,1737588648378,-500.0,0.000217,2]
[350041069,1737588648392,-500.0,0.000217,2]
[350041070,1737588648401,-500.0,0.000217,2]
[350041071,1737588648411,-1180.68,0.000217,2]
[350041072,1737588648424,-501.41361573,0.000217,2]
[350041073,1737588648433,-500.0,0.000217,2]
[350041074,1737588648443,-500.0,0.000217,2]
[350041075,1737588648452,-500.0,0.000217,2]
[350041076,1737588648462,-500.0,0.000217,2]
[350041077,1737588648472,-500.0,0.000217,2]
[350041078,1737588648482,-500.0,0.000217,2]
[350041079,1737588648492,-500.0,0.000217,2]
[350041080,1737588648501,-500.0,0.000217,2]
[350041081,1737588648511,-500.0,0.000217,2]
[350041082,1737588648520,-512.34034123,0.000217,2]
[350041083,1737588648530,-1949.48,0.000217,2]
[350041084,1737588648539,-500.0,0.000217,2]
[350041085,1737588648548,-500.0,0.000217,2]
[350041086,1737588648558,-500.0,0.000217,2]
[350041087,1737588648567,-316.22777558,0.000217,2]
[350041088,1737588648576,-500.0,0.000217,2]
[350041089,1737588648585,-500.0,0.000217,2]
[350041090,1737588648595,-500.0,0.000217,2]
[350041091,1737588648604,-500.0,0.000217,2]
[350041092,1737588648613,-513.14028951,0.000217,2]
[350041093,1737588648622,-2220.64,0.000217,2]
[350041094,1737588648631,-500.0,0.000217,2]
[350041095,1737588648647,-500.0,0.000217,2]
[350041096,1737588648656,-500.0,0.000217,2]
[350041097,1737588648666,-500.0,0.000217,2]
[350041098,1737588648675,-500.0,0.000217,2]
[350041099,1737588648685,-500.0,0.000217,2]
[350041100,1737588648694,-500.0,0.000217,2]
[350041101,1737588648704,-537.01212071,0.000217,2]
[350041102,1737588648714,-500.0,0.000217,2]
[350041103,1737588648724,-500.0,0.000217,2]
[350041104,1737588648733,-500.0,0.000217,2]
[350041105,1737588648743,-500.0,0.000217,2]
[350041106,1737588648752,-1000.0,0.000217,2]
[350041107,1737588648762,-509.56564344,0.000217,2]
[350041108,1737588648771,-500.0,0.000217,2]
[350041109,1737588648781,-500.0,0.000217,2]
[350041110,1737588648790,-500.0,0.000217,2]
[350041111,1737588648799,-500.0,0.000217,2]
[350041112,1737588648809,-500.0,0.000217,2]
[350041113,1737588648818,-500.0,0.000217,2]
[350041114,1737588648828,-502.71199337,0.000217,2]
[350041115,1737588648837,-500.0,0.000217,2]
[350041116,1737588648846,-500.0,0.000217,2]
[350041117,1737588648855,-500.0,0.000217,2]
[350041118,1737588648865,-500.0,0.000217,2]
[350041119,1737588648874,-500.0,0.000217,2]
[350041120,1737588648883,-350.0,0.000217,2]
[350041121,1737588648897,-500.0,0.000217,2]
[350041122,1737588648907,-500.0,0.000217,2]
[350041123,1737588648916,-500.0,0.000217,2]
[350041124,1737588648925,-500.0,0.000217,2]
[350041125,1737588648935,-632.50862155,0.000217,2]
[350041126,1737588648945,-500.0,0.000217,2]
[350041127,1737588648955,-500.0,0.000217,2]
[350041128,1737588648964,-388.80165442,0.000217,2]
[350041129,1737588648973,-5000.0,0.000217,2]
[350041130,1737588648983,-500.0,0.000217,2]
[350041131,1737588648993,-500.0,0.000217,2]
[350041132,1737588649002,-500.0,0.000217,2]
[350041133,1737588649011,-500.0,0.000217,2]
[350041134,1737588649021,-500.0,0.000217,2]
[350041135,1737588649030,-501.43465911,0.000217,2]
[350041136,1737588649039,-161.30204374,0.000217,2]
[350041137,1737588649049,-500.0,0.000217,2]
[350041138,1737588649059,-500.0,0.000217,2]
[350041139,1737588649068,-500.0,0.000217,2]
[350041140,1737588649078,-500.0,0.000217,2]
[350041141,1737588649088,-518.72377792,0.000217,2]
[350041142,1737588649098,-1528.39169353,0.00021708,2]
[350041143,1737588649107,-150.0,0.00021735,2]
[350041144,1737588649116,-150.0,0.00021744,2]
[350041145,1737588649126,-1528.39169353,0.00021756,2]
[350041146,1737588649135,-418.96053311,0.00021756,2]
[350041147,1737588649147,-1000.0,0.00021772,2]
[350041148,1737588649157,-150.0,0.0002178,2]
[350041149,1737588649167,-150.0,0.00021788,2]
[350041150,1737588649177,-2185.0,0.000218,7]
[350041151,1737588649186,-7242.45068991,0.000218,2]
[350041152,1737588649195,-3338.32,0.000218,2]
[350041153,1737588649204,-15343.87834026,0.000218,2]
[350041154,1737588649214,-1000.0,0.000218,2]
[350041155,1737588649223,-150.0,0.00021803,2]
[350041156,1737588649233,-1528.39169353,0.00021804,2]
[350041157,1737588649243,-150.0,0.00021809,2]
[350041158,1737588649252,-500.0,0.00021823,2]
[350041159,1737588649261,-500.0,0.00021824,2]
[350041160,1737588649271,-150.0,0.00021828,2]
[350041161,1737588649281,-1000.0,0.00021832,2]
[350041162,1737588649291,-500.0,0.00021841,2]
[350041163,1737588649300,-500.0,0.00021841,2]
[350041164,1737588649309,-500.0,0.00021841,2]
[350041165,1737588649318,-277.09,0.00021841,2]
[350041166,1737588649327,-764.7,0.00021841,2]
[350041167,1737588649336,-500.0,0.00021841,2]
[350041168,1737588649346,-500.0,0.00021841,2]
[350041169,1737588649355,-500.0,0.00021841,2]
[350041170,1737588649365,-500.0,0.00021841,2]
[350041171,1737588649374,-500.0,0.00021841,2]
[350041172,1737588649385,-500.0,0.00021841,2]
[350041173,1737588649398,-269.7379071,0.00021841,2]
[350041174,1737588649410,-500.0,0.00021841,2]
[350041175,1737588649424,-367.11,0.00021841,2]
[350041176,1737588649434,-500.0,0.00021841,2]
[350041177,1737588649443,-383.09750557,0.00021841,2]
[350041178,1737588649455,-500.0,0.00021841,2]
[350041179,1737588649464,-534.88,0.00021841,2]
[350041180,1737588649473,-500.0,0.00021841,2]
[350041181,1737588649483,-500.0,0.00021841,2]
[350041182,1737588649494,-500.0,0.00021841,2]
[350041183,1737588649503,-500.0,0.00021841,2]
[350041184,1737588649512,-500.0,0.00021841,2]
[350041185,1737588649522,-500.0,0.00021841,2]
[350041186,1737588649531,-500.0,0.00021841,2]
[350041187,1737588649541,-500.0,0.00021841,2]
[350041188,1737588649551,-500.0,0.00021841,2]
[350041189,1737588649570,-500.0,0.00021841,2]
[350041190,1737588649587,-500.0,0.00021841,2]
[350041191,1737588649596,-500.0,0.00021841,2]
[350041192,1737588649607,-609.29,0.00021841,2]
[350041193,1737588649616,-573.62,0.00021841,2]
[350041194,1737588649625,-500.0,0.00021841,2]
[350041195,1737588649635,-608.08,0.00021841,2]
[350041196,1737588649648,-760.26,0.00021841,2]
[350041197,1737588649657,-579.96,0.00021841,2]
[350041198,1737588649666,-500.0,0.00021841,2]
[350041199,1737588649675,-633.97,0.00021841,2]
[350041200,1737588649684,-500.0,0.00021841,2]
[350041201,1737588649694,-500.0,0.00021841,2]
[350041202,1737588649703,-2467.98,0.00021841,2]
[350041203,1737588649712,-500.0,0.00021841,2]
[350041204,1737588649721,-2982.03,0.00021841,2]
[350041205,1737588649730,-1185.49,0.00021841,2]
[350041206,1737588649740,-500.0,0.00021841,2]
[350041207,1737588649749,-500.0,0.00021841,2]
[350041208,1737588649759,-500.0,0.00021841,2]
[350041209,1737588649768,-1579.05,0.00021841,2]
[350041210,1737588649778,-500.0,0.00021841,2]
[350041211,1737588649787,-500.0,0.00021841,2]
[350041212,1737588649796,-500.0,0.00021841,2]
[350041213,1737588649806,-1041.69,0.00021841,2]
[350041214,1737588649816,-500.0,0.00021841,2]
[350041215,1737588649827,-813.51,0.00021841,2]
[350041216,1737588649837,-500.0,0.00021841,2]
[350041217,1737588649846,-500.0,0.00021841,2]
[350041218,1737588649855,-500.0,0.00021841,2]
[350041219,1737588649865,-500.0,0.00021841,2]
[350041220,1737588649874,-500.0,0.00021841,2]
[350041221,1737588649884,-500.0,0.00021841,2]
[350041222,1737588649899,-500.0,0.00021841,2]
[350041223,1737588649910,-3165.99,0.00021841,2]
[350041224,1737588649919,-500.0,0.00021841,2]
[350041225,1737588649928,-1719.99,0.00021841,2]
[350041226,1737588649938,-500.0,0.00021841,2]
[350041227,1737588649947,-500.0,0.00021841,2]
[350041228,1737588649956,-792.87,0.00021841,2]
[350041229,1737588649965,-500.0,0.00021841,2]
[350041230,1737588649975,-500.0,0.00021841,2]
[350041231,1737588649984,-500.0,0.00021841,2]
[350041232,1737588649994,-500.0,0.00021841,2]
[350041233,1737588650003,-500.0,0.00021841,2]
[350041234,1737588650013,-500.0,0.00021841,2]
[350041235,1737588650022,-500.0,0.00021841,2]
[350041236,1737588650035,-1154.75,0.00021841,2]
[350041237,1737588650045,-500.0,0.00021841,2]
[350041238,1737588650054,-1438.05,0.00021841,2]
[350041239,1737588650064,-500.0,0.00021841,2]
[350041240,1737588650073,-500.0,0.00021841,2]
[350041241,1737588650082,-500.0,0.00021841,2]
[350041242,1737588650091,-500.0,0.00021841,2]
[350041243,1737588650100,-500.0,0.00021841,2]
[350041244,1737588650110,-500.0,0.00021841,2]
[350041245,1737588650122,-500.0,0.00021841,2]
[350041246,1737588650136,-664.73,0.00021841,2]
[350041247,1737588650146,-623.08678844,0.00021841,2]
[350041248,1737588650156,-1479.14,0.00021841,2]
[350041249,1737588650165,-500.0,0.00021841,2]
[350041250,1737588650174,-500.0,0.00021841,2]
[350041251,1737588650184,-500.0,0.00021841,2]
[350041252,1737588650193,-500.0,0.00021841,2]
[350041253,1737588650202,-666.45,0.00021841,2]
[350041254,1737588650211,-500.0,0.00021841,2]
[350041255,1737588650220,-500.0,0.00021841,2]
[350041256,1737588650230,-702.83,0.00021841,2]
[350041257,1737588650240,-500.0,0.00021841,2]
[350041258,1737588650250,-845.76,0.00021841,2]
[350041259,1737588650259,-500.0,0.00021841,2]
[350041260,1737588650268,-215.24823034,0.00021841,2]
[350041261,1737588650277,-500.0,0.00021841,2]
[350041262,1737588650287,-500.0,0.00021841,2]
[350041263,1737588650296,-1325.95,0.00021841,2]
[350041264,1737588650305,-500.0,0.00021841,2]
[350041265,1737588650318,-500.0,0.00021841,2]
[350041266,1737588650328,-500.0,0.00021841,2]
[350041267,1737588650337,-500.0,0.00021841,2]
[350041268,1737588650346,-1286.78,0.00021841,2]
[350041269,1737588650355,-500.0,0.00021841,2]
[350041270,1737588650364,-502.15365608,0.00021841,2]
[350041271,1737588650373,-500.0,0.00021841,2]
[350041272,1737588650382,-500.0,0.00021841,2]
[350041273,1737588650394,-2989.18,0.00021841,2]
[350041274,1737588650403,-500.0,0.00021841,2]
[350041275,1737588650413,-500.0,0.00021841,2]
[350041276,1737588650426,-508.83939441,0.00021841,2]
[350041277,1737588650435,-5284.7,0.00021841,2]
[350041278,1737588650445,-500.0,0.00021841,2]
[350041279,1737588650456,-804.58,0.00021841,2]
[350041280,1737588650466,-500.0,0.00021841,2]
[350041281,1737588650476,-500.0,0.00021841,2]
[350041282,1737588650485,-500.0,0.00021841,2]
[350041283,1737588650496,-1124.15,0.00021841,2]
[350041284,1737588650506,-500.0,0.00021841,2]
[350041285,1737588650515,-500.0,0.00021841,2]
[350041286,1737588650524,-500.0,0.00021841,2]
[350041287,1737588650666,-1035.24,0.00021841,2]
[350041288,1737588650676,-500.0,0.00021842,2]
[350041289,1737588650687,-500.0,0.00021842,2]
[350041290,1737588650698,-500.0,0.00021842,2]
[350041291,1737588650707,-500.0,0.00021842,2]
[350041292,1737588650716,-500.0,0.00021842,2]
[350041293,1737588650726,-500.0,0.00021842,2]
[350041294,1737588650735,-500.0,0.00021842,2]
[350041295,1737588650745,-184.16,0.00021842,2]
[350041296,1737588650754,-500.0,0.00021842,2]
[350041297,1737588650763,-500.0,0.00021842,2]
[350041298,1737588650774,-500.0,0.00021842,2]
[350041299,1737588650783,-500.0,0.00021842,2]
[350041300,1737588650793,-500.0,0.00021842,2]
[350041301,1737588650807,-500.0,0.00021842,2]
[350041302,1737588650816,-1528.39169353,0.00021852,2]
[350041303,1737588650827,-150.0,0.00021854,2]
[350041304,1737588650836,-1077.2,0.00021873,2]
[350041305,1737588650845,-582.14,0.00021873,2]
[350041306,1737588650854,-1158.15,0.00021873,2]
[350041307,1737588650864,-500.0,0.00021873,2]
[350041308,1737588650873,-500.0,0.00021873,2]
[350041309,1737588650882,-500.0,0.00021873,2]
[350041310,1737588650894,-827.47,0.00021873,2]
[350041311,1737588650903,-428.334612,0.00021873,2]
[350041312,1737588650912,-500.0,0.00021873,2]
[350041313,1737588650922,-420.42133202,0.00021873,2]
[350041314,1737588650931,-500.0,0.00021873,2]
[350041315,1737588650940,-521.59,0.00021873,2]
[350041316,1737588650949,-615.65,0.00021873,2]
[350041317,1737588650958,-540.365352,0.00021873,2]
[350041318,1737588650967,-1311.22,0.00021873,2]
[350041319,1737588650976,-584.46,0.00021873,2]
[350041320,1737588650985,-881.35,0.00021873,2]
[350041321,1737588650994,-500.0,0.00021873,2]
[350041322,1737588651003,-500.0,0.00021873,2]
[350041323,1737588651013,-794.07,0.00021873,2]
[350041324,1737588651022,-2036.67,0.00021873,2]
[350041325,1737588651031,-1561.63,0.00021873,2]
[350041326,1737588651040,-1651.63,0.00021873,2]
[350041327,1737588651049,-638.45,0.00021873,2]
[350041328,1737588651058,-500.0,0.00021873,2]
[350041329,1737588651067,-715.8,0.00021873,2]
[350041330,1737588651076,-500.0,0.00021873,2]
[350041331,1737588651085,-1678.62,0.00021873,2]
[350041332,1737588651094,-822.2,0.00021873,2]
[350041333,1737588651103,-630.29,0.00021873,2]
[350041334,1737588651112,-500.0,0.00021873,2]
[350041335,1737588651121,-962.36,0.00021873,2]
[350041336,1737588651131,-1223.81,0.00021873,2]
[350041337,1737588651142,-790.06,0.00021873,2]
[350041338,1737588651151,-2233.36,0.00021873,2]
[350041339,1737588651161,-1116.91,0.00021873,2]
[350041340,1737588651169,-166.533177,0.00021873,2]
[350041341,1737588651179,-2405.57,0.00021873,2]
[350041342,1737588651189,-1557.04,0.00021873,2]
[350041343,1737588651198,-5800.0,0.00021873,2]
[350041344,1737588651207,-3999.999999,0.00021874,3]
[350041345,1737588651216,-150.0,0.00021876,2]
[350041346,1737588651225,-5800.0,0.00021882,2]
[350041347,1737588651234,-2110.0,0.00021885,2]
[350041348,1737588651243,-150.0,0.00021888,2]
[350041349,1737588651252,-5800.0,0.0002189,2]
[350041350,1737588651261,-2000.0,0.0002189,2]
[350041351,1737588651271,-150.0,0.0002189,2]
[350041352,1737588651280,-150.0,0.00021892,2]
[350041353,1737588651289,-150.0,0.00021892,2]
[350041354,1737588651298,-156.49992948,0.000219,2]
[350041355,1737588651307,-3645.0,0.000219,2]
[350041356,1737588651316,-779.0113834,0.000219,2]
[350041357,1737588651325,-1528.39169353,0.000219,2]
[350041358,1737588651334,-745.0,0.000219,2]
[350041359,1737588651343,-212.41253456,0.000219,3]
[350041360,1737588651353,-4646.6284801,0.000219,4]
[350041361,1737588651362,-366.0,0.000219,2]
[350041362,1737588651371,-1000.0,0.00021915,2]
[350041363,1737588651380,-500.0,0.00021917,2]
[350041364,1737588651391,-500.0,0.00021917,2]
[350041365,1737588651400,-692.25,0.00021917,2]
[350041366,1737588651410,-500.0,0.00021917,2]
[350041367,1737588651424,-500.0,0.00021917,2]
[350041368,1737588651433,-982.92,0.00021917,2]
[350041369,1737588651442,-1449.15,0.00021917,2]
[350041370,1737588651452,-1447.07,0.00021917,2]
[350041371,1737588651461,-945.65,0.00021917,2]
[350041372,1737588651471,-1267.16,0.00021917,2]
[350041373,1737588651480,-597.02,0.00021917,2]
[350041374,1737588651491,-1722.24,0.00021917,2]
[350041375,1737588651500,-673.01,0.00021917,2]
[350041376,1737588651509,-716.85,0.00021917,2]
[350041377,1737588651519,-1651.07,0.00021917,2]
[350041378,1737588651528,-581.16,0.00021917,2]
[350041379,1737588651537,-2649.57,0.00021917,2]
[350041380,1737588651546,-500.0,0.00021917,2]
[350041381,1737588651556,-588.54,0.00021917,2]
[350041382,1737588651565,-684.71,0.00021917,2]
[350041383,1737588651574,-2456.01,0.00021917,2]
[350041384,1737588651584,-1112.05,0.00021917,2]
[350041385,1737588651593,-500.0,0.00021917,2]
[350041386,1737588651602,-502.34,0.00021917,2]
[350041387,1737588651611,-500.0,0.00021917,2]
[350041388,1737588651621,-429.9,0.00021917,2]
[350041389,1737588651630,-150.0,0.00021918,2]
[350041390,1737588651640,-251.03,0.00021921,2]
[350041391,1737588651649,-254.7,0.00021921,2]
[350041392,1737588651658,-150.0,0.00021927,2]
[350041393,1737588651667,-150.0,0.00021934,2]
[350041394,1737588651677,-150.0,0.00021935,2]
[350041395,1737588651686,-150.0,0.00021939,2]
[350041396,1737588651695,-295.47493229,0.00021973,4]
[350041397,1737588651704,-150.0,0.00021973,4]
[350041398,1737588651713,-151.60281456,0.00021973,4]
[350041399,1737588651722,-150.0,0.00021973,4]
[350041400,1737588651732,-500.0,0.00021974,2]
[350041401,1737588651742,-500.0,0.00021974,2]
[350041402,1737588651751,-500.0,0.00021974,2]
[350041403,1737588651760,-595.61096697,0.00021974,2]
[350041404,1737588651770,-694.39,0.00021974,2]
[350041405,1737588651779,-500.0,0.00021974,2]
[350041406,1737588651788,-496.08776722,0.00021974,2]
[350041407,1737588651797,-340.74590459,0.00021974,2]
[350041408,1737588651807,-516.56849469,0.00021974,2]
[350041409,1737588651816,-500.0,0.00021974,2]
[350041410,1737588651825,-500.0,0.00021974,2]
[350041411,1737588651835,-500.0,0.00021974,2]
[350041412,1737588651844,-500.0,0.00021974,2]
[350041413,1737588651854,-500.0,0.00021974,2]
[350041414,1737588651863,-500.0,0.00021974,2]
[350041415,1737588651872,-500.0,0.00021974,2]
[350041416,1737588651881,-500.0,0.00021974,2]
[350041417,1737588651891,-510.07478074,0.00021974,2]
[350041418,1737588651900,-500.0,0.00021974,2]
[350041419,1737588651909,-500.0,0.00021974,2]
[350041420,1737588651918,-500.0,0.00021974,2]
[350041421,1737588651927,-500.0,0.00021974,2]
[350041422,1737588651936,-500.0,0.00021974,2]
[350041423,1737588651946,-500.0,0.00021974,2]
[350041424,1737588651955,-500.0,0.00021974,2]
[350041425,1737588651971,-500.0,0.00021974,2]
[350041426,1737588651981,-500.0,0.00021974,2]
[350041427,1737588651990,-500.0,0.00021974,2]
[350041428,1737588651999,-500.0,0.00021974,2]
[350041429,1737588652008,-347.59210135,0.00021974,2]
[350041430,1737588652017,-500.0,0.00021974,2]
[350041431,1737588652026,-500.0,0.00021974,2]
[350041432,1737588652035,-2196.97,0.00021974,2]
[350041433,1737588652044,-500.0,0.00021974,2]
[350041434,1737588652053,-500.0,0.00021974,2]
[350041435,1737588652062,-500.0,0.00021974,2]
[350041436,1737588652071,-500.0,0.00021974,2]
[350041437,1737588652080,-500.0,0.00021974,2]
[350041438,1737588652089,-500.0,0.00021974,2]
[350041439,1737588652098,-957.27,0.00021974,2]
[350041440,1737588652108,-500.0,0.00021974,2]
[350041441,1737588652117,-500.0,0.00021974,2]
[350041442,1737588652126,-500.0,0.00021974,2]
[350041443,1737588652136,-1274.36,0.00021974,2]
[350041444,1737588652148,-500.0,0.00021974,2]
[350041445,1737588652157,-500.0,0.00021974,2]
[350041446,1737588652167,-500.0,0.00021974,2]
[350041447,1737588652176,-500.0,0.00021974,2]
[350041448,1737588652185,-1475.58,0.00021974,2]
[350041449,1737588652194,-500.0,0.00021974,2]
[350041450,1737588652204,-500.0,0.00021974,2]
[350041451,1737588652213,-500.0,0.00021974,2]
[350041452,1737588652222,-500.0,0.00021974,2]
[350041453,1737588652231,-500.0,0.00021974,2]
[350041454,1737588652240,-500.0,0.00021974,2]
[350041455,1737588652250,-508.10632727,0.00021974,2]
[350041456,1737588652259,-1000.0,0.00021974,2]
[350041457,1737588652268,-500.0,0.00021974,2]
[350041458,1737588652276,-500.0,0.00021974,2]
[350041459,1737588652285,-1180.68,0.00021974,2]
[350041460,1737588652294,-500.0,0.00021974,2]
[350041461,1737588652303,-520.99643937,0.00021974,2]
[350041462,1737588652312,-500.0,0.00021974,2]
[350041463,1737588652321,-500.0,0.00021974,2]
[350041464,1737588652330,-500.0,0.00021974,2]
[350041465,1737588652339,-500.0,0.00021974,2]
[350041466,1737588652349,-515.12971938,0.00021974,2]
[350041467,1737588652358,-1949.48,0.00021974,2]
[350041468,1737588652368,-500.0,0.00021974,2]
[350041469,1737588652377,-500.0,0.00021974,2]
[350041470,1737588652387,-500.0,0.00021974,2]
[350041471,1737588652397,-500.0,0.00021974,2]
[350041472,1737588652407,-500.0,0.00021974,2]
[350041473,1737588652421,-2220.64,0.00021974,2]
[350041474,1737588652430,-500.0,0.00021974,2]
[350041475,1737588652440,-500.0,0.00021974,2]
[350041476,1737588652450,-500.0,0.00021974,2]
[350041477,1737588652460,-500.0,0.00021974,2]
[350041478,1737588652469,-500.0,0.00021974,2]
[350041479,1737588652478,-500.0,0.00021974,2]
[350041480,1737588652487,-500.0,0.00021974,2]
[350041481,1737588652497,-500.0,0.00021974,2]
[350041482,1737588652507,-500.0,0.00021974,2]
[350041483,1737588652516,-500.0,0.00021974,2]
[350041484,1737588652525,-500.0,0.00021974,2]
[350041485,1737588652534,-500.0,0.00021974,2]
[350041486,1737588652543,-503.32671205,0.00021974,2]
[350041487,1737588652552,-500.0,0.00021974,2]
[350041488,1737588652562,-500.0,0.00021974,2]
[350041489,1737588652571,-500.0,0.00021974,2]
[350041490,1737588652580,-500.0,0.00021974,2]
[350041491,1737588652589,-500.0,0.00021974,2]
[350041492,1737588652598,-500.0,0.00021974,2]
[350041493,1737588652607,-500.0,0.00021974,2]
[350041494,1737588652616,-500.0,0.00021974,2]
[350041495,1737588652625,-500.0,0.00021974,2]
[350041496,1737588652635,-500.0,0.00021974,2]
[350041497,1737588652647,-501.75918858,0.00021974,2]
[350041498,1737588652656,-500.0,0.00021974,2]
[350041499,1737588652666,-462.23145042,0.00021974,2]
[350041500,1737588652675,-500.0,0.00021974,2]
[350041501,1737588652684,-500.0,0.00021974,2]
[350041502,1737588652693,-500.0,0.00021974,2]
[350041503,1737588652703,-500.0,0.00021974,2]
[350041504,1737588652712,-500.0,0.00021974,2]
[350041505,1737588652722,-500.0,0.00021974,2]
[350041506,1737588652731,-500.0,0.00021974,2]
[350041507,1737588652741,-500.0,0.00021974,2]
[350041508,1737588652751,-500.0,0.00021974,2]
[350041509,1737588652760,-295.47493229,0.00021977,4]
[350041510,1737588652768,-151.60281456,0.00021977,4]
[350041511,1737588652778,-150.0,0.00021978,2]
[350041512,1737588652787,-150.0,0.0002198,2]
[350041513,1737588652796,-150.0,0.0002198,4]
[350041514,1737588652806,-295.47493229,0.00021981,4]
[350041515,1737588652815,-151.60281456,0.00021981,4]
[350041516,1737588652824,-150.0,0.00021984,2]
[350041517,1737588652834,-295.47493229,0.00021985,4]
[350041518,1737588652843,-151.60281456,0.00021985,4]
[350041519,1737588652851,-150.0,0.00021988,4]
[350041520,1737588652861,-295.47493229,0.00021989,4]
[350041521,1737588652870,-151.60281456,0.00021989,4]
[350041522,1737588652879,-295.47493229,0.00021993,4]
[350041523,1737588652887,-151.60281456,0.00021993,4]
[350041524,1737588652897,-248.53,0.00021994,2]
[350041525,1737588652906,-150.0,0.00021995,4]
[350041526,1737588652915,-150.0,0.00021995,4]
[350041527,1737588652924,-4895.79987028,0.00021997,2]